bitfinex/quotes_BTCUSD_20250901
["timestamp","ask_amount","ask_price","bid_price","bid_amount"]
[1756734477533,0.18313341,109210.0,109200.0,0.24458719]
[1756734477751,0.54123946,109210.0,109200.0,0.07340719]
[1756734477958,0.54123946,109210.0,109200.0,0.23916719]
[1756734478163,0.56876046,109210.0,109200.0,0.23912719]
[1756734478371,0.21576441,109210.0,109200.0,0.23912719]
[1756734478599,0.56876046,109210.0,109200.0,0.23912719]
[1756734478893,0.56876046,109210.0,109200.0,0.07240719]
[1756734479105,0.56876046,109210.0,109200.0,4.719e-05]
[1756734479306,0.56976046,109210.0,109200.0,0.16560719]
[1756734479590,0.56976046,109210.0,109200.0,4.719e-05]
[1756734479881,0.56675046,109210.0,109200.0,0.00208719]
[1756734480028,0.56675046,109210.0,109200.0,4.719e-05]
[1756734480234,0.56976046,109210.0,109200.0,4.719e-05]
[1756734480635,0.21375441,109210.0,109200.0,0.16760719]
[1756734480842,0.56675046,109210.0,109200.0,0.16756719]
[1756734481045,0.56675046,109210.0,109200.0,0.16552719]
[1756734481680,0.56675046,109210.0,109200.0,0.16544719]
[1756734481900,0.56675046,109210.0,109200.0,4.719e-05]
[1756734482131,0.56675046,109210.0,109200.0,0.16544719]
[1756734482339,0.56465046,109210.0,109200.0,0.17062719]
[1756734482567,0.56663046,109210.0,109200.0,0.16748719]
[1756734482750,0.56663046,109210.0,109200.0,0.16544719]
[1756734482969,0.56663046,109210.0,109200.0,0.16540719]
[1756734483377,0.21363441,109210.0,109200.0,0.16540719]
[1756734483595,0.56663046,109210.0,109200.0,0.16640719]
[1756734483808,0.56563046,109210.0,109200.0,0.16540719]
[1756734484430,0.56876046,109210.0,109200.0,4.719e-05]
[1756734484855,0.21576441,109210.0,109200.0,4.719e-05]
[1756734485066,0.21676441,109210.0,109200.0,4.719e-05]
[1756734485273,0.56976046,109210.0,109200.0,4.719e-05]
[1756734485683,0.56663046,109210.0,109200.0,4.719e-05]
[1756734485895,0.21363441,109210.0,109200.0,4.719e-05]
[1756734486106,0.56663046,109210.0,109200.0,4.719e-05]
[1756734486721,0.21363441,109210.0,109200.0,0.00210719]
[1756734486931,0.21165441,109210.0,109200.0,0.00517719]
[1756734487146,0.028521,109210.0,109200.0,0.18832737]
[1756734487595,0.001,109210.0,109200.0,0.18832737]
[1756734487822,0.027518,109220.0,109210.0,0.52313341]
[1756734488043,0.19225242,109240.0,109220.0,0.18310515]
[1756734488257,0.21059711,109240.0,109230.0,0.16706]
[1756734488466,0.21059711,109240.0,109220.0,0.1853941]
[1756734488467,0.18309988,109230.0,109220.0,0.34]
[1756734488683,0.18309988,109230.0,109220.0,0.69013664]
[1756734488908,0.18309988,109230.0,109220.0,0.51009]
[1756734489114,0.18309988,109230.0,109220.0,0.69320664]
[1756734489981,0.18787858,109230.0,109220.0,0.69320664]
[1756734490425,0.0047787,109230.0,109220.0,0.69320664]
[1756734490877,0.0047787,109230.0,109220.0,0.69420664]
[1756734491705,0.0047787,109230.0,109220.0,0.69620664]
[1756734492341,0.0047787,109230.0,109220.0,1.14111868]
[1756734492780,0.0047787,109230.0,109220.0,1.15039093]
[1756734492992,0.07374631,109260.0,109250.0,0.18306636]
[1756734493216,0.07374631,109260.0,109250.0,0.35275636]
[1756734493440,0.0002,109260.0,109250.0,0.35275636]
[1756734493650,0.0049787,109260.0,109250.0,0.7976684]
[1756734494098,0.0049787,109260.0,109250.0,1.1376684]
[1756734494315,0.00067047,109260.0,109250.0,1.1376684]
[1756734495370,0.00067047,109260.0,109250.0,1.1406684]
[1756734495586,0.00067047,109260.0,109250.0,1.1376684]
[1756734495808,0.00067047,109260.0,109250.0,0.78467235]
[1756734496026,0.00067047,109260.0,109250.0,1.1406684]
[1756734496908,0.00067047,109260.0,109250.0,0.78751235]
[1756734497435,0.18372007,109260.0,109250.0,0.79047235]
[1756734497688,0.00067047,109260.0,109250.0,0.78747235]
[1756734497944,0.00067047,109260.0,109250.0,0.78447235]
[1756734498178,0.00067047,109260.0,109250.0,0.78847235]
[1756734498406,0.00067047,109260.0,109250.0,0.78647235]
[1756734498833,0.00067047,109260.0,109250.0,0.78447235]
[1756734499275,0.53884612,109260.0,109250.0,0.34]
[1756734499490,0.54181612,109260.0,109250.0,0.002]
[1756734500361,0.54181612,109260.0,109250.0,0.16612]
[1756734501003,0.54181612,109260.0,109250.0,0.16412]
[1756734501271,0.18306636,109250.0,109240.0,0.0704]
[1756734501482,0.18306636,109250.0,109240.0,0.23436]
[1756734501691,0.18519636,109250.0,109240.0,0.23436]
[1756734502152,0.18519636,109250.0,109240.0,0.0704]
[1756734502401,0.18519636,109250.0,109240.0,0.23436]
[1756734502661,0.18308311,109240.0,109230.0,0.34]
[1756734502889,0.18521311,109240.0,109230.0,0.68903988]
[1756734503113,0.18521311,109240.0,109230.0,0.50594]
[1756734503345,0.18521311,109240.0,109230.0,0.68903988]
[1756734503570,0.18521311,109240.0,109230.0,0.50901]
[1756734503786,0.18521311,109240.0,109230.0,0.50594]
[1756734504134,0.18521311,109240.0,109230.0,0.16594]
[1756734504338,0.18521311,109240.0,109230.0,0.16388]
[1756734504556,0.18521311,109240.0,109230.0,0.16488]
[1756734504974,0.53820916,109240.0,109230.0,0.16568]
[1756734505391,0.18521311,109240.0,109230.0,0.16568]
[1756734505839,0.18521311,109240.0,109230.0,0.002]
[1756734506055,0.18818311,109240.0,109230.0,0.1646]
[1756734506269,0.18818311,109240.0,109230.0,0.1636]
[1756734506703,0.53820916,109240.0,109230.0,0.1636]
[1756734507319,0.53820916,109240.0,109220.0,0.59347662]
[1756734507320,0.18309988,109230.0,109220.0,0.59347662]
[1756734507578,0.18309988,109230.0,109220.0,0.57909]
[1756734508742,0.18522988,109230.0,109220.0,0.58009]
[1756734509178,0.18522988,109230.0,109220.0,0.58109]
[1756734509607,0.18309988,109230.0,109220.0,0.76420664]
[1756734509828,0.18308311,109240.0,109230.0,0.18309988]
[1756734510041,0.18308311,109240.0,109230.0,0.19051862]
[1756734510251,0.18521311,109240.0,109220.0,0.85099263]
[1756734510460,0.18521311,109240.0,109220.0,0.85406263]
[1756734510668,0.18521311,109240.0,109230.0,0.00206]
[1756734510870,0.57272672,109250.0,109230.0,0.35367862]
[1756734511079,0.21973067,109250.0,109240.0,0.00307]
[1756734511285,0.21973067,109250.0,109240.0,0.00513]
[1756734512309,0.22173067,109250.0,109240.0,0.00513]
[1756734512511,0.22273067,109250.0,109240.0,0.00513]
[1756734512718,0.22173067,109250.0,109240.0,0.00513]
[1756734512930,0.19421967,109250.0,109240.0,0.19050164]
[1756734513136,0.19421967,109250.0,109240.0,0.18821311]
[1756734513470,0.19634967,109250.0,109240.0,0.00513]
[1756734514458,0.19434967,109250.0,109240.0,0.00513]
[1756734514664,0.19434967,109250.0,109240.0,0.18821311]
[1756734514913,0.18306636,109250.0,109240.0,0.18821311]
[1756734515582,0.22038255,109260.0,109240.0,0.18821311]
[1756734515790,0.18306636,109250.0,109240.0,0.18821311]
[1756734515999,0.18306636,109250.0,109240.0,0.35097311]
[1756734516211,0.22516125,109260.0,109240.0,0.35097311]
[1756734517110,0.18306636,109250.0,109240.0,0.35197311]
[1756734517535,0.18306636,109250.0,109240.0,0.35097311]
[1756734518178,0.18306636,109250.0,109240.0,0.35197311]
[1756734519849,0.18306636,109250.0,109240.0,0.35297311]
[1756734522747,0.22516125,109260.0,109240.0,0.35297311]
[1756734522958,0.18306636,109250.0,109240.0,0.35297311]
[1756734523164,0.22516125,109260.0,109240.0,0.35297311]
[1756734523370,0.18306636,109250.0,109240.0,0.35297311]
[1756734523972,0.18306636,109250.0,109240.0,0.35197311]
[1756734524182,0.18306636,109250.0,109240.0,0.35097311]
[1756734524624,0.22516125,109260.0,109240.0,0.35097311]
[1756734525243,0.22516125,109260.0,109240.0,0.39250893]
[1756734525628,0.21600877,109260.0,109250.0,0.18853468]
[1756734525838,0.00544917,109260.0,109250.0,0.52821636]
[1756734526052,0.21053785,109270.0,109260.0,0.18303837]
[1756734526259,0.2564745,109280.0,109260.0,0.35035556]
[1756734526693,0.2839385,109280.0,109260.0,0.35035556]
[1756734527128,0.1127077,109280.0,109270.0,0.18303285]
[1756734527345,0.34519273,109290.0,109280.0,0.1830161]
[1756734527552,0.37467373,109290.0,109280.0,0.1830161]
[1756734527762,0.37467373,109290.0,109280.0,0.1849861]
[1756734527972,0.21061373,109290.0,109280.0,0.3502061]
[1756734528185,0.76863283,109300.0,109280.0,0.3502061]
[1756734528387,0.18299935,109290.0,109280.0,0.3502061]
[1756734528569,0.18498935,109290.0,109280.0,0.3502061]
[1756734529445,0.18299935,109290.0,109280.0,0.3502061]
[1756734529668,0.79613183,109300.0,109280.0,0.3502061]
[1756734529884,0.18299935,109290.0,109280.0,0.3502061]
[1756734530097,0.18499935,109290.0,109280.0,0.3502061]
[1756734530524,0.18499935,109290.0,109280.0,0.1849861]
[1756734530737,0.18499935,109290.0,109280.0,0.1872738]
[1756734530951,0.18499935,109290.0,109280.0,0.16377]
[1756734531371,0.18499935,109290.0,109280.0,0.1618]
[1756734531631,0.18499935,109290.0,109280.0,0.16377]
[1756734532033,0.18499935,109290.0,109280.0,0.1618]
[1756734532244,0.18599935,109290.0,109280.0,0.16377]
[1756734532894,0.18599935,109290.0,109280.0,0.3467861]
[1756734533524,0.18599935,109290.0,109280.0,0.1881661]
[1756734533728,0.18599935,109290.0,109280.0,0.3498461]
[1756734533950,0.001,109290.0,109280.0,0.3498461]
[1756734535065,0.37277578,109300.0,109280.0,0.3498461]
[1756734535263,0.027699,109300.0,109290.0,0.18299935]
[1756734535476,0.027699,109300.0,109290.0,0.63534888]
[1756734535683,0.0002,109300.0,109290.0,0.63306139]
[1756734535900,0.0002,109300.0,109290.0,0.28006534]
[1756734536101,0.0002,109300.0,109290.0,0.44158534]
[1756734536318,0.0002,109300.0,109290.0,0.28006534]
[1756734536523,0.0002,109300.0,109290.0,0.44170534]
[1756734536740,0.0002,109300.0,109290.0,0.79470139]
[1756734536941,0.0002,109300.0,109290.0,0.44170534]
[1756734537356,0.0002,109300.0,109290.0,0.97306139]
[1756734537568,0.0002,109300.0,109290.0,1.13558139]
[1756734538627,0.0002,109300.0,109290.0,1.13554139]
[1756734539694,0.0002,109300.0,109290.0,1.13454139]
[1756734540131,0.0002,109300.0,109290.0,0.97306139]
[1756734540337,0.0002,109300.0,109290.0,1.13470139]
[1756734540566,0.0002,109300.0,109290.0,1.13570139]
[1756734540778,0.0002,109300.0,109290.0,1.15964021]
[1756734540989,0.0002,109300.0,109290.0,1.20964021]
[1756734541196,0.0002,109310.0,109300.0,0.74392143]
[1756734541406,0.0002,109310.0,109300.0,1.19201347]
[1756734541582,0.0002,109310.0,109300.0,1.19398347]
[1756734542024,0.0002,109310.0,109300.0,1.24398347]
[1756734542239,0.0002,109310.0,109300.0,1.80554347]
[1756734542448,0.0002,109310.0,109300.0,1.80559066]
[1756734542803,0.0002,109310.0,109300.0,1.85559066]
[1756734543010,0.0002,109310.0,109300.0,1.73434064]
[1756734543221,0.0002,109310.0,109300.0,1.89582064]
[1756734543423,0.0002,109310.0,109300.0,1.89882064]
[1756734543822,0.0002,109310.0,109300.0,1.89782064]
[1756734544021,0.07374631,109330.0,109320.0,0.54388796]
[1756734544224,0.07374631,109330.0,109320.0,1.05912]
[1756734544571,0.07374631,109330.0,109320.0,1.42571]
[1756734544787,0.0002,109330.0,109320.0,1.77870605]
[1756734544989,0.0002,109330.0,109320.0,1.82870605]
[1756734545139,0.0002,109330.0,109320.0,1.82862605]
[1756734545350,0.0002,109330.0,109320.0,1.71427]
[1756734545506,0.0002,109330.0,109320.0,1.87563]
[1756734546107,0.0002,109330.0,109320.0,1.71427]
[1756734546309,0.0002,109330.0,109320.0,1.87559]
[1756734546662,0.0002,109330.0,109320.0,1.87555]
[1756734546926,0.0002,109330.0,109320.0,1.87755]
[1756734547311,0.0002,109330.0,109320.0,1.88055]
[1756734548709,0.0002,109330.0,109320.0,1.88047]
[1756734549205,0.0002,109330.0,109320.0,1.36627395]
[1756734549402,0.0002,109330.0,109320.0,1.88039]
[1756734549816,0.0002,109330.0,109320.0,1.907868]
[1756734550016,0.0002,109330.0,109320.0,2.26086405]
[1756734551179,0.0002,109350.0,109340.0,0.54385449]
[1756734551388,0.0002,109350.0,109340.0,1.14988653]
[1756734551587,0.0002,109350.0,109340.0,1.15481653]
[1756734551972,0.0002,109350.0,109340.0,1.55481653]
[1756734552392,0.0002,109350.0,109340.0,1.59566141]
[1756734552629,0.0002,109350.0,109340.0,1.59562141]
[1756734553459,0.0002,109350.0,109340.0,1.44386347]
[1756734553671,0.00527,109350.0,109340.0,0.6649986]
[1756734553885,0.18511894,109350.0,109340.0,0.6649986]
[1756734554103,0.18816894,109350.0,109340.0,0.8260786]
[1756734554317,0.00222,109350.0,109340.0,0.8280386]
[1756734554564,0.0002,109350.0,109340.0,1.18400465]
[1756734554996,0.0002,109350.0,109340.0,0.8260786]
[1756734554997,0.18816894,109350.0,109340.0,0.8260786]
[1756734556457,0.18816894,109350.0,109340.0,0.6659986]
[1756734556665,0.54116499,109350.0,109340.0,0.38184488]
[1756734556851,0.54116499,109350.0,109340.0,4.719e-05]
[1756734557048,0.54116499,109350.0,109340.0,0.16112719]
[1756734557641,0.54116499,109350.0,109340.0,0.00104719]
[1756734557863,0.55020411,109350.0,109340.0,0.16112719]
[1756734558278,0.54216499,109350.0,109340.0,0.16112719]
[1756734558492,0.54216499,109350.0,109340.0,4.719e-05]
[1756734558922,0.18916894,109350.0,109340.0,4.719e-05]
[1756734559348,0.54216499,109350.0,109340.0,4.719e-05]
[1756734560680,0.54616499,109350.0,109340.0,4.719e-05]
[1756734560884,0.54516499,109350.0,109340.0,4.719e-05]
[1756734561098,0.54116499,109350.0,109340.0,4.719e-05]
[1756734561307,0.54316499,109350.0,109340.0,4.719e-05]
[1756734561517,0.54616499,109350.0,109340.0,4.719e-05]
[1756734563572,0.54616499,109350.0,109340.0,4.719e-05]
[1756734564156,0.57365299,109350.0,109340.0,4.719e-05]
[1756734565996,0.57060299,109350.0,109340.0,4.719e-05]
[1756734566781,0.57060299,109350.0,109340.0,0.18296286]
[1756734566782,0.21760694,109350.0,109340.0,0.18296286]
[1756734566980,0.56860299,109350.0,109340.0,0.18296286]
[1756734567420,0.56960299,109350.0,109340.0,4.719e-05]
[1756734568058,0.56965299,109350.0,109340.0,4.719e-05]
[1756734568451,0.57065299,109350.0,109340.0,4.719e-05]
[1756734569287,0.66256898,109350.0,109340.0,4.719e-05]
[1756734569726,1.00256898,109350.0,109340.0,4.719e-05]
[1756734569884,1.02233877,109350.0,109340.0,4.719e-05]
[1756734570909,0.00914829,109310.0,109280.0,0.2624869]
[1756734571113,0.53599429,109300.0,109290.0,0.27793254]
[1756734571315,0.53801429,109300.0,109290.0,0.0049772]
[1756734571508,0.53801429,109300.0,109290.0,4.72e-05]
[1756734571640,0.18501824,109300.0,109290.0,4.72e-05]
[1756734571843,0.53801429,109300.0,109290.0,4.72e-05]
[1756734572474,0.53801429,109300.0,109290.0,0.0020072]
[1756734572686,0.53801429,109300.0,109290.0,4.72e-05]
[1756734573512,0.53901429,109300.0,109290.0,4.72e-05]
[1756734573715,0.53901429,109300.0,109290.0,0.0010472]
[1756734573944,0.18906824,109300.0,109290.0,0.0010472]
[1756734574132,0.54206429,109300.0,109290.0,0.0010472]
[1756734574512,0.54206429,109300.0,109290.0,4.72e-05]
[1756734574939,0.63398028,109300.0,109290.0,4.72e-05]
[1756734575151,0.63298028,109300.0,109290.0,4.72e-05]
[1756734576118,0.63398028,109300.0,109290.0,4.72e-05]
[1756734576320,0.63298028,109300.0,109290.0,4.72e-05]
[1756734576692,0.63598028,109300.0,109290.0,4.72e-05]
[1756734577055,0.79402028,109300.0,109290.0,4.72e-05]
[1756734577467,0.79602028,109300.0,109290.0,4.72e-05]
[1756734578605,0.79802028,109300.0,109290.0,4.72e-05]
[1756734578808,0.35005824,109300.0,109290.0,4.72e-05]
[1756734579016,0.70598429,109300.0,109290.0,4.72e-05]
[1756734579825,0.54494429,109300.0,109290.0,4.72e-05]
[1756734580096,0.70305429,109300.0,109290.0,4.72e-05]
[1756734580310,0.73348429,109300.0,109290.0,4.72e-05]
[1756734580509,0.38048824,109300.0,109290.0,4.72e-05]
[1756734580739,0.73348429,109300.0,109290.0,4.72e-05]
[1756734580949,0.73055429,109300.0,109290.0,4.72e-05]
[1756734581467,0.73348429,109300.0,109290.0,4.72e-05]
[1756734582506,1.16540028,109300.0,109290.0,4.72e-05]
[1756734586582,0.1830496,109260.0,109250.0,0.01220463]
[1756734586785,0.53604565,109260.0,109250.0,0.00314728]
[1756734586992,0.53604565,109260.0,109250.0,0.00527728]
[1756734587367,0.7245739,109270.0,109250.0,0.18834364]
[1756734587572,0.1830496,109260.0,109250.0,0.00217728]
[1756734587774,0.1830496,109260.0,109250.0,0.18524364]
[1756734588162,0.1830496,109260.0,109250.0,0.18834364]
[1756734588580,0.1830496,109260.0,109250.0,0.00527728]
[1756734588966,0.1830496,109260.0,109250.0,0.19334364]
[1756734589371,0.1830496,109260.0,109250.0,0.01027728]
[1756734589635,0.53604565,109260.0,109250.0,0.01027728]
[1756734589852,0.1850696,109260.0,109250.0,0.00204728]
[1756734590018,0.53806565,109260.0,109250.0,4.728e-05]
[1756734590417,0.53806565,109260.0,109250.0,0.00517728]
[1756734590601,0.53604565,109260.0,109250.0,0.00827728]
[1756734591396,0.53806565,109260.0,109250.0,0.00304728]
[1756734591611,0.69910565,109260.0,109250.0,0.00204728]
[1756734591815,0.69910565,109260.0,109250.0,4.728e-05]
[1756734592020,0.53604565,109260.0,109250.0,0.00527728]
[1756734592222,0.2125576,109260.0,109250.0,0.00527728]
[1756734592463,0.56355365,109260.0,109250.0,0.00527728]
[1756734592865,0.56857365,109260.0,109250.0,0.00527728]
[1756734593364,0.56657365,109260.0,109250.0,0.00527728]
[1756734593686,0.56555365,109260.0,109250.0,0.00527728]
[1756734593907,0.1850496,109260.0,109250.0,0.18834364]
[1756734594107,0.53804565,109260.0,109250.0,0.00527728]
[1756734594307,0.54006565,109260.0,109250.0,0.00527728]
[1756734594554,0.53804565,109260.0,109250.0,0.00527728]
[1756734595158,0.53604565,109260.0,109250.0,0.00527728]
[1756734595489,0.53804565,109260.0,109250.0,0.00527728]
[1756734595920,0.1830496,109260.0,109250.0,0.18834364]
[1756734596134,0.53704565,109260.0,109250.0,0.00527728]
[1756734596353,0.1850496,109260.0,109250.0,0.19063196]
[1756734596551,0.1850496,109260.0,109250.0,0.34938364]
[1756734596953,0.54006565,109260.0,109250.0,4.728e-05]
[1756734597117,0.53906565,109260.0,109250.0,0.00217728]
[1756734597350,0.53704565,109260.0,109250.0,0.00527728]
[1756734597548,0.1840496,109260.0,109250.0,0.00527728]
[1756734597756,0.53704565,109260.0,109250.0,0.00527728]
[1756734598910,0.53804565,109260.0,109250.0,0.00527728]
[1756734599097,0.53906565,109260.0,109250.0,0.00527728]
[1756734599303,0.53806565,109260.0,109250.0,4.728e-05]
[1756734599424,0.70199565,109260.0,109250.0,4.728e-05]
[1756734600982,0.69906565,109260.0,109250.0,4.728e-05]
[1756734601187,0.70199565,109260.0,109250.0,4.728e-05]
[1756734601592,0.71135249,109260.0,109250.0,4.728e-05]
[1756734602005,0.71235249,109260.0,109250.0,4.728e-05]
[1756734602212,0.70299565,109260.0,109250.0,4.728e-05]
[1756734602418,0.70006565,109260.0,109250.0,4.728e-05]
[1756734602617,0.53906565,109260.0,109250.0,4.728e-05]
[1756734602815,0.70106565,109260.0,109250.0,4.728e-05]
[1756734603040,0.70599565,109260.0,109250.0,4.728e-05]
[1756734604493,0.73350565,109260.0,109250.0,4.728e-05]
[1756734604914,0.73057565,109260.0,109250.0,4.728e-05]
[1756734605549,0.3775796,109260.0,109250.0,4.728e-05]
[1756734605747,0.73057565,109260.0,109250.0,4.728e-05]
[1756734606002,0.3775796,109260.0,109250.0,4.728e-05]
[1756734606203,0.73057565,109260.0,109250.0,4.728e-05]
[1756734608005,1.07366565,109260.0,109250.0,4.728e-05]
[1756734609100,1.16558164,109260.0,109250.0,4.728e-05]
[1756734610303,1.48937233,109260.0,109250.0,4.728e-05]
[1756734610940,1.32528233,109260.0,109250.0,4.728e-05]
[1756734611171,1.14784896,109260.0,109250.0,4.728e-05]
[1756734611562,0.5545596,109260.0,109250.0,0.00515728]
[1756734611786,0.7155196,109260.0,109250.0,0.00515728]
[1756734611983,1.05594297,109260.0,109250.0,4.728e-05]
[1756734612189,1.48933233,109260.0,109250.0,4.728e-05]
[1756734614809,1.50904021,109260.0,109250.0,4.728e-05]
[1756734619755,1.34808021,109260.0,109250.0,4.728e-05]
[1756734619897,1.14777896,109260.0,109250.0,4.728e-05]
[1756734620126,1.48617233,109260.0,109250.0,4.728e-05]
[1756734620318,1.50588361,109260.0,109250.0,4.728e-05]
[1756734620497,1.50896361,109260.0,109250.0,4.728e-05]
[1756734620940,1.50588361,109260.0,109250.0,4.728e-05]
[1756734622515,1.50896361,109260.0,109250.0,4.728e-05]
[1756734622787,1.50588361,109260.0,109250.0,4.728e-05]
[1756734623325,1.50896361,109260.0,109250.0,4.728e-05]
[1756734624565,1.50588361,109260.0,109250.0,4.728e-05]
[1756734625660,1.50896361,109260.0,109250.0,4.728e-05]
[1756734625877,1.61731385,109260.0,109250.0,4.728e-05]
[1756734626081,1.95570722,109260.0,109250.0,1e-08]
[1756734626291,1.65900159,109260.0,109250.0,1e-08]
[1756734626671,1.65896159,109260.0,109250.0,1e-08]
[1756734627435,1.65895573,109260.0,109250.0,1e-08]
[1756734627863,1.65895851,109260.0,109250.0,1e-08]
[1756734628270,1.64184834,109260.0,109250.0,1e-08]
[1756734629095,1.98024171,109260.0,109250.0,1e-08]
[1756734629275,1.99735657,109260.0,109250.0,1e-08]
[1756734629478,1.98024171,109260.0,109250.0,1e-08]
[1756734629966,1.61534496,109260.0,109250.0,1e-08]
[1756734630174,1.61222496,109260.0,109250.0,1e-08]
[1756734631054,1.58758491,109260.0,109250.0,1e-08]
[1756734631268,1.59066491,109260.0,109250.0,1e-08]
[1756734632719,0.40999817,109260.0,109250.0,0.00511001]
[1756734632929,0.48698763,109260.0,109250.0,0.00511001]
[1756734633147,1.14566896,109260.0,109250.0,0.00511001]
[1756734633357,1.48406233,109260.0,109250.0,0.00511001]
[1756734633564,0.80727559,109260.0,109250.0,0.00511001]
[1756734633783,1.14566896,109260.0,109250.0,0.00511001]
[1756734634039,1.62859684,109260.0,109250.0,1e-08]
[1756734634252,1.64830635,109260.0,109250.0,1e-08]
[1756734634470,2.01125089,109260.0,109250.0,1e-08]
[1756734634690,2.06125089,109260.0,109250.0,1e-08]
[1756734634906,2.08589094,109260.0,109250.0,1e-08]
[1756734635128,1.93847872,109260.0,109250.0,1e-08]
[1756734635401,2.09688827,109260.0,109250.0,1e-08]
[1756734635851,2.0722971,109260.0,109250.0,1e-08]
[1756734636068,1.60174189,109260.0,109250.0,1e-08]
[1756734636287,1.76254189,109260.0,109250.0,1e-08]
[1756734636761,1.80298203,109260.0,109250.0,1e-08]
[1756734636985,1.12100389,109260.0,109250.0,1e-08]
[1756734637215,1.23469389,109260.0,109250.0,1e-08]
[1756734637441,1.10857359,109260.0,109250.0,1e-08]
[1756734637657,1.26333359,109260.0,109250.0,1e-08]
[1756734637876,1.61102604,109260.0,109250.0,1e-08]
[1756734638094,1.70706318,109260.0,109250.0,1e-08]
[1756734638331,1.71106318,109260.0,109250.0,1e-08]
[1756734638799,1.76106318,109260.0,109250.0,1e-08]
[1756734639017,1.87735927,109260.0,109250.0,1e-08]
[1756734639300,1.83300971,109260.0,109250.0,1e-08]
[1756734639484,1.8571993,109260.0,109250.0,1e-08]
[1756734640127,1.90153272,109260.0,109250.0,1e-08]
[1756734641967,1.90152324,109260.0,109250.0,1e-08]
[1756734642201,1.85278248,109260.0,109250.0,1e-08]
[1756734642439,1.69202248,109260.0,109250.0,1e-08]
[1756734642652,1.32872526,109260.0,109250.0,1e-08]
[1756734642864,1.37872526,109260.0,109250.0,1e-08]
[1756734643306,1.81105741,109260.0,109250.0,1e-08]
[1756734645195,1.83568709,109260.0,109250.0,1e-08]
[1756734645410,2.13730743,109260.0,109250.0,1e-08]
[1756734645626,7.1297699,109260.0,109250.0,1e-08]
[1756734645865,0.89673115,109230.0,109220.0,1e-08]
[1756734646080,1.31168313,109230.0,109220.0,1e-08]
[1756734646295,1.15301313,109230.0,109220.0,1e-08]
[1756734646511,1.36094879,109230.0,109220.0,0.00216001]
[1756734646724,1.36573279,109230.0,109220.0,0.00216001]
[1756734647399,1.36573279,109230.0,109220.0,1e-08]
[1756734647400,1.36673279,109230.0,109220.0,1e-08]
[1756734647607,1.36673279,109230.0,109220.0,0.00216001]
[1756734647810,1.36468279,109230.0,109220.0,0.00541001]
[1756734648014,1.36666279,109230.0,109220.0,0.00541001]
[1756734648467,1.34499313,109230.0,109220.0,0.00541001]
[1756734648885,1.34697313,109230.0,109220.0,0.00541001]
[1756734649090,1.34697313,109230.0,109220.0,1e-08]
[1756734649296,1.36665365,109230.0,109220.0,1e-08]
[1756734649527,1.36665365,109230.0,109220.0,0.00216001]
[1756734649954,1.36665365,109230.0,109220.0,0.00541001]
[1756734650912,1.40714613,109230.0,109220.0,0.00541001]
[1756734651329,1.05247368,109230.0,109220.0,0.00541001]
[1756734651546,1.40715613,109230.0,109220.0,0.00541001]
[1756734653007,1.20395365,109230.0,109220.0,0.00541001]
[1756734653256,1.34495313,109230.0,109220.0,0.00541001]
[1756734655598,0.37872587,109230.0,109220.0,0.00541001]
[1756734655842,0.73141832,109230.0,109220.0,0.00541001]
[1756734656144,0.89209832,109230.0,109220.0,0.00541001]
[1756734656357,1.23209832,109230.0,109220.0,0.00541001]
[1756734657006,0.71872587,109230.0,109220.0,0.00541001]
[1756734657213,1.23209832,109230.0,109220.0,0.00541001]
[1756734659060,1.23205832,109230.0,109220.0,0.00541001]
[1756734660795,0.59928388,109230.0,109220.0,0.00541001]
[1756734660978,0.41988388,109230.0,109220.0,0.00541001]
[1756734661220,0.34948388,109230.0,109220.0,0.00541001]
[1756734661848,0.34369988,109230.0,109220.0,0.00541001]
[1756734662270,0.34469988,109230.0,109220.0,0.00541001]
[1756734662490,0.18409988,109230.0,109220.0,0.1908156]
[1756734662706,0.34469988,109230.0,109220.0,0.18852665]
[1756734662920,0.1616,109230.0,109220.0,0.18952665]
[1756734663156,0.001,109230.0,109220.0,0.18952665]
[1756734663365,0.34469988,109230.0,109220.0,0.18952665]
[1756734663799,0.18409988,109230.0,109220.0,0.18952665]
[1756734664006,0.18309988,109230.0,109220.0,0.18952665]
[1756734664192,0.18309988,109230.0,109220.0,0.19052665]
[1756734664529,0.18309824,109240.0,109230.0,0.18309988]
[1756734664745,0.34369824,109240.0,109230.0,0.00541]
[1756734664945,0.18309824,109240.0,109230.0,0.18850988]
[1756734665177,0.18309824,109240.0,109230.0,0.00541]
[1756734665178,0.34365824,109240.0,109230.0,0.00541]
[1756734665376,0.69635069,109240.0,109230.0,0.00541]
[1756734665979,0.69735069,109240.0,109230.0,0.00541]
[1756734667742,0.69635069,109240.0,109230.0,0.00541]
[1756734667952,0.69635069,109240.0,109230.0,0.00641]
[1756734668157,0.34365824,109240.0,109230.0,0.00641]
[1756734668558,0.18309824,109240.0,109230.0,0.00641]
[1756734668765,0.34361824,109240.0,109230.0,0.00641]
[1756734668967,0.34361824,109240.0,109230.0,0.00741]
[1756734669581,0.18309824,109240.0,109230.0,0.00741]
[1756734669789,0.26264897,109250.0,109230.0,0.19279862]
[1756734670007,0.16052,109240.0,109230.0,0.19050988]
[1756734670211,0.34360311,109240.0,109230.0,0.18725988]
[1756734670425,0.26264897,109250.0,109240.0,0.18308311]
[1756734670629,0.26264897,109250.0,109240.0,0.00537]
[1756734670829,0.42316897,109250.0,109240.0,0.00537]
[1756734671046,0.42416897,109250.0,109240.0,0.00537]
[1756734671252,0.18409566,109250.0,109240.0,0.18845311]
[1756734671454,0.34361662,109260.0,109250.0,0.18306636]
[1756734671664,0.34361662,109260.0,109250.0,0.00537]
[1756734672491,0.34361662,109260.0,109250.0,0.00765832]
[1756734672691,0.34361662,109260.0,109250.0,0.19072468]
[1756734672928,0.34361662,109260.0,109250.0,0.18843636]
[1756734673141,4.702e-05,109260.0,109250.0,0.18843636]
[1756734673541,4.702e-05,109260.0,109250.0,0.28035235]
[1756734673977,0.00204702,109260.0,109250.0,0.28135235]
[1756734674405,4.702e-05,109260.0,109250.0,0.6340448]
[1756734674874,4.702e-05,109260.0,109250.0,0.6350448]
[1756734675081,0.18309662,109260.0,109250.0,0.44279235]
[1756734675290,4.702e-05,109260.0,109250.0,0.44179235]
[1756734675492,0.18309662,109260.0,109250.0,0.44379235]
[1756734675902,0.18309662,109260.0,109250.0,0.44279235]
[1756734676134,4.702e-05,109260.0,109250.0,0.44279235]
[1756734676346,0.18309662,109260.0,109250.0,0.44379235]
[1756734677075,0.18309662,109260.0,109250.0,0.10028599]
[1756734677289,0.18309662,109260.0,109250.0,0.00837]
[1756734677726,0.18522662,109260.0,109250.0,0.00837]
[1756734678125,0.53791907,109260.0,109250.0,0.00513]
[1756734678558,0.53791907,109260.0,109250.0,0.003]
[1756734679131,0.53791907,109260.0,109250.0,0.002]
[1756734679534,0.53891907,109260.0,109250.0,0.002]
[1756734679998,0.18306636,109250.0,109240.0,0.00324]
[1756734680190,0.34346636,109250.0,109240.0,0.00324]
[1756734680458,0.34346636,109250.0,109240.0,0.00537]
[1756734681308,0.34346636,109250.0,109240.0,0.00637]